[Event "Czech Youth U16 Girls 2024"]
[Site "Kouty nad Desnou"]
[Date "2024.03.14"]
[Round "7.8"]
[White "Dudkova, Josefina"]
[Black "Holatova, Irena"]
[Result "1-0"]
[ECO "D05"]
[WhiteElo "1796"]
[BlackElo "1608"]
[Annotator "NA RC"]
[PlyCount "109"]
[EventDate "2024.03.10"]
[EventType "swiss"]
[EventCountry "CZE"]
[SourceTitle "playchess.com"]
[Source "ChessBase"]
[SourceQuality "1"]
[TimeControl "40/5400+30:1800+30"]

1. d4 {[%emt 0:00:06]} d5 {[%emt 0:00:04]} 2. Nf3 {[%emt 0:00:06]} Nf6 {[%emt 0:00:38]} 3. e3 {[%emt 0:00:06]} e6 {[%emt 0:00:45]} 4. Bd3 {[%emt 0:00:10]} c5 {[%emt 0:00:30]} 5. b3 {[%emt 0:00:07]} Bd6 {[%emt 0:01:12]} 6. Bb2 {[%emt 0:01:33]} Nc6 {[%emt 0:01:10]} 7. Nbd2 {[%emt 0:00:27]} O-O {[%emt 0:03:32]} 8. O-O {[%emt 0:00:58]} b6 {[%emt 0:06:15]} 9. a3 {[%emt 0:01:16]} Bb7 {[%emt 0:02:05]} 10. Ne5 {[%emt 0:03:18]} Ne7 {[%emt 0:09:49]} 11. f4 {[%emt 0:09:42]} Ne4 {[%emt 0:06:41]} 12. Nxe4 {[%emt 0:14:41]} dxe4 {[%emt 0:00:09]} 13. Bc4 {[%emt 0:05:08]} Bd5 {[%emt 0:04:56]} 14. Bxd5 {[%emt 0:04:54]} exd5 {[%emt 0:01:01]} 15. Qg4 {[%emt 0:04:22]} Qc8 {[%emt 0:07:45]} 16. Nd7 {[%emt 0:13:01]} f5 {[%emt 0:05:05]} 17. Qg3 {[%emt 0:01:34]} Qxd7 {[%emt 0:01:12]} 18. dxc5 {[%emt 0:00:10]} Ng6 {[%emt 0:01:35]} 19. cxd6 {[%emt 0:00:14]} Qxd6 {[%emt 0:00:20]} 20. h4 {[%emt 0:04:15]} Rf7 {[%emt 0:06:35]} 21. Rfd1 {[%emt 0:03:39]} Ne7 {[%emt 0:04:30]} 22. c4 {[%emt 0:02:02]} Qe6 {[%emt 0:01:34]} 23. Rac1 {[%emt 0:01:42]} Rd8 {[%emt 0:07:13]} 24. b4 {[%emt 0:06:08]} Qg6 {[%emt 0:02:00]} 25. Qf2 {[%emt 0:01:17]} Rc8 {[%emt 0:03:40]} 26. cxd5 {[%emt 0:01:23]} Rxc1 {[%emt 0:00:49]} 27. Bxc1 {[%emt 0:00:07]} Nc8 {[%emt 0:01:07]} 28. Qc2 {[%emt 0:02:30]} Nd6 {[%emt 0:01:37]} 29. Qc6 {[%emt 0:01:14]} Rf8 {[%emt 0:01:58]} 30. Bb2 {[%emt 0:02:22]} Rc8 {[%emt 0:01:31]} 31. Qd7 {[%emt 0:02:46]} Rc2 {[%emt 0:03:30]} 32. Qe6+ {[%emt 0:02:43]} Kf8 {[%emt 0:00:50]} 33. Qxg6 {[%emt 0:00:42]} hxg6 {[%emt 0:00:05]} 34. Be5 {[%emt 0:01:10]} Ke7 {[%emt 0:00:38]} 35. Bxg7 {[%emt 0:00:49]} Re2 {[%emt 0:01:41]} 36. Rc1 {[%emt 0:01:40]} Rxe3 {[%emt 0:00:38]} 37. Rc7+ {[%emt 0:00:09]} Kd8 {[%emt 0:00:34]} 38. Rc6 {[%emt 0:02:23]} Ne8 {[%emt 0:01:38]} 39. Rxg6 {[%emt 0:03:50]} Rxa3 {[%emt 0:00:34]} 40. h5 {[%emt 0:02:06]} e3 {[%emt 0:01:47]} 41. Kf1 {[%emt 0:30:39]} Nxg7 {[%emt 0:31:46]} 42. Rxg7 {[%emt 0:00:02]} Ra1+ {[%emt 0:01:39]} 43. Ke2 {[%emt 0:00:20]} Rh1 {[%emt 0:00:13]} 44. Rg5 {[%emt 0:00:39]} a5 {[%emt 0:01:07]} 45. bxa5 {[%emt 0:00:19]} bxa5 {[%emt 0:00:05]} 46. Rxf5 {[%emt 0:00:19]} a4 {[%emt 0:00:26]} 47. Rf8+ {[%emt 0:02:11]} Ke7 {[%emt 0:00:30]} 48. Ra8 {[%emt 0:00:34]} Rxh5 {[%emt 0:00:23]} 49. Kxe3 {[%emt 0:00:23]} Rxd5 {[%emt 0:00:28]} 50. Rxa4 {[%emt 0:00:09]} Rh5 {[%emt 0:00:57]} 51. g4 {[%emt 0:01:04]} Rh4 {[%emt 0:00:47]} 52. g5 {[%emt 0:00:15]} Kf7 {[%emt 0:01:02]} 53. Ke4 {[%emt 0:00:20]} Kg6 {[%emt 0:01:28]} 54. Ra6+ {[%emt 0:00:26]} Kh5 {[%emt 0:00:49]} 55. Rh6+ {[%emt 0:00:27]} 1-0

[Event "Czech Youth U16 Girls 2024"]
[Site "Kouty nad Desnou"]
[Date "2024.03.14"]
[Round "7.9"]
[White "Archlebova, Stela"]
[Black "Zelenkova, Sofie"]
[Result "1-0"]
[ECO "B01"]
[WhiteElo "1600"]
[BlackElo "1636"]
[Annotator "NA RC"]
[PlyCount "81"]
[EventDate "2024.03.10"]
[EventType "swiss"]
[EventCountry "CZE"]
[SourceTitle "playchess.com"]
[Source "ChessBase"]
[SourceQuality "1"]
[TimeControl "40/5400+30:1800+30"]

1. e4 {[%emt 0:00:02]} d5 {[%emt 0:00:04]} 2. exd5 {[%emt 0:00:16]} Qxd5 {[%emt 0:00:03]} 3. Nc3 {[%emt 0:00:17]} Qa5 {[%emt 0:00:05]} 4. d4 {[%emt 0:00:52]} c6 {[%emt 0:00:04]} 5. Nf3 {[%emt 0:00:31]} Nf6 {[%emt 0:00:21]} 6. Bd2 {[%emt 0:00:59]} Bg4 {[%emt 0:00:56]} 7. Be2 {[%emt 0:01:40]} e6 {[%emt 0:00:53]} 8. a3 {[%emt 0:01:53]} Nbd7 {[%emt 0:01:06]} 9. O-O {[%emt 0:02:02]} Bd6 {[%emt 0:01:46]} 10. Nb5 {[%emt 0:04:34]} Bxh2+ {[%emt 0:14:34]} 11. Kxh2 {[%emt 0:00:22]} Qd8 {[%emt 0:02:26]} 12. Nc3 {[%emt 0:01:56]} h5 {[%emt 0:01:42]} 13. Rh1 {[%emt 0:02:22]} Qb6 {[%emt 0:06:24]} 14. Be3 {[%emt 0:08:10]} h4 {[%emt 0:05:36]} 15. Kg1 {[%emt 0:03:59]} h3 {[%emt 0:04:27]} 16. g3 {[%emt 0:04:53]} Nd5 {[%emt 0:08:44]} 17. Nxd5 {[%emt 0:00:46]} cxd5 {[%emt 0:00:09]} 18. Rb1 {[%emt 0:03:03]} f6 {[%emt 0:03:04]} 19. Nh4 {[%emt 0:00:43]} Bxe2 {[%emt 0:01:11]} 20. Qxe2 {[%emt 0:00:10]} g5 {[%emt 0:01:02]} 21. Nf3 {[%emt 0:02:39]} g4 {[%emt 0:03:53]} 22. Nh4 {[%emt 0:01:01]} f5 {[%emt 0:02:22]} 23. Qd3 {[%emt 0:11:04]} O-O-O {[%emt 0:04:56]} 24. Bf4 {[%emt 0:01:05]} Qc6 {[%emt 0:02:06]} 25. Rc1 {[%emt 0:01:10]} b5 {[%emt 0:01:21]} 26. b3 {[%emt 0:03:02]} Kb7 {[%emt 0:02:30]} 27. Ng6 {[%emt 0:06:41]} Rh7 {[%emt 0:01:10]} 28. f3 {[%emt 0:00:35]} Rg8 29. Ne5 {[%emt 0:02:44]} Nxe5 {[%emt 0:03:05]} 30. Bxe5 {[%emt 0:00:14]} gxf3 {[%emt 0:05:18]} 31. Qxf3 {[%emt 0:00:20]} Rg6 {[%emt 0:01:31]} 32. Rh2 {[%emt 0:02:20]} a6 {[%emt 0:04:39]} 33. Kh1 {[%emt 0:04:58]} Kb6 {[%emt 0:02:19]} 34. c3 {[%emt 0:01:26]} Qc8 {[%emt 0:01:38]} 35. Qf1 {[%emt 0:00:42]} Rgh6 {[%emt 0:00:50]} 36. c4 {[%emt 0:05:49]} dxc4 {[%emt 0:00:56]} 37. bxc4 {[%emt 0:00:40]} Qc6+ {[%emt 0:02:17]} 38. Kg1 {[%emt 0:00:12]} Qe4 {[%emt 0:02:00]} 39. Qf2 {[%emt 0:06:03]} bxc4 {[%emt 0:01:37]} 40. Qb2+ {[%emt 0:05:48]} Ka7 {[%emt 0:00:35]} 41. Qb8# 1-0

[Event "Czech Youth U16 Girls 2024"]
[Site "Kouty nad Desnou"]
[Date "2024.03.14"]
[Round "7.10"]
[White "Hetfleischova, Elen"]
[Black "Janouskova, Adela"]
[Result "1-0"]
[ECO "A80"]
[WhiteElo "1699"]
[BlackElo "1684"]
[Annotator "NA RC"]
[PlyCount "69"]
[EventDate "2024.03.10"]
[EventType "swiss"]
[EventCountry "CZE"]
[SourceTitle "playchess.com"]
[Source "ChessBase"]
[SourceQuality "1"]
[TimeControl "40/5400+30:1800+30"]

1. d4 {[%emt 0:00:09]} f5 {[%emt 0:00:40]} 2. Nc3 {[%emt 0:02:32]} e6 {[%emt 0:04:11]} 3. Nf3 {[%emt 0:02:15]} Nf6 4. Bf4 {[%emt 0:01:31]} d6 {[%emt 0:07:08]} 5. e3 {[%emt 0:03:25]} Be7 {[%emt 0:01:49]} 6. Bd3 {[%emt 0:00:37]} O-O {[%emt 0:03:02]} 7. Qe2 {[%emt 0:08:21]} c6 {[%emt 0:06:39]} 8. O-O-O {[%emt 0:03:48]} b5 {[%emt 0:04:38]} 9. h3 Qa5 {[%emt 0:05:31]} 10. a3 {[%emt 0:07:37]} b4 {[%emt 0:05:34]} 11. axb4 Qxb4 {[%emt 0:01:10]} 12. g4 {[%emt 0:00:50]} a5 {[%emt 0:03:37]} 13. gxf5 {[%emt 0:00:58]} a4 {[%emt 0:04:57]} 14. Na2 {[%emt 0:04:30]} Qb6 {[%emt 0:03:22]} 15. h4 {[%emt 0:01:43]} Na6 {[%emt 0:04:13]} 16. Qd2 {[%emt 0:05:10]} Rb8 {[%emt 0:02:52]} 17. c3 {[%emt 0:01:42]} Qb3 {[%emt 0:03:15]} 18. Nb4 {[%emt 0:04:44]} Nxb4 {[%emt 0:02:48]} 19. cxb4 Nd5 {[%emt 0:07:23]} 20. Bc2 {[%emt 0:03:00]} Qa2 {[%emt 0:02:02]} 21. f6 {[%emt 0:10:23]} Rxf6 {[%emt 0:05:09]} 22. Qd3 {[%emt 0:01:59]} g6 {[%emt 0:01:47]} 23. Qa3 {[%emt 0:05:49]} Qc4 {[%emt 0:02:43]} 24. Nd2 {[%emt 0:06:26]} Qxb4 {[%emt 0:02:25]} 25. Ne4 {[%emt 0:03:15]} Rf8 {[%emt 0:02:30]} 26. Bh6 {[%emt 0:06:42]} Rd8 {[%emt 0:01:18]} 27. h5 {[%emt 0:01:41]} Qb6 {[%emt 0:09:44]} 28. hxg6 {[%emt 0:01:02]} hxg6 {[%emt 0:00:21]} 29. Rdg1 {[%emt 0:01:04]} Nb4 {[%emt 0:02:43]} 30. Rxg6+ {[%emt 0:00:43]} Kf7 {[%emt 0:00:13]} 31. Rg7+ {[%emt 0:00:29]} Ke8 {[%emt 0:00:14]} 32. Bg5 {[%emt 0:03:10]} Rd7 {[%emt 0:01:29]} 33. Rh8+ {[%emt 0:02:29]} Bf8 {[%emt 0:00:03]} 34. Nf6+ {[%emt 0:00:35]} Kd8 {[%emt 0:00:10]} 35. Nd5+ {[%emt 0:00:53]} 1-0

[Event "Czech Youth U16 Girls 2024"]
[Site "Kouty nad Desnou"]
[Date "2024.03.15"]
[Round "8.1"]
[White "Kaplanova, Dominika"]
[Black "Dobsa, Emma"]
[Result "0-1"]
[ECO "C26"]
[WhiteElo "1837"]
[BlackElo "1750"]
[Annotator "NA COMBH"]
[PlyCount "101"]
[EventDate "2024.03.10"]
[EventType "swiss"]
[EventCountry "CZE"]
[SourceTitle "playchess.com"]
[Source "ChessBase"]
[SourceQuality "1"]
[TimeControl "40/5400+30:1800+30"]

1. e4 {[%emt 0:00:16]} e5 {[%emt 0:00:05]} 2. Nc3 {[%emt 0:00:18]} Nf6 {[%emt 0:00:24]} 3. d4 {[%emt 0:00:21]} exd4 {[%emt 0:00:32]} 4. Qxd4 {[%emt 0:00:12]} Nc6 {[%emt 0:01:16]} 5. Qd3 {[%emt 0:00:35]} Bc5 {[%emt 0:02:38]} 6. Bf4 {[%emt 0:01:41]} O-O {[%emt 0:01:42]} 7. O-O-O {[%emt 0:01:54]} Re8 {[%emt 0:05:49]} 8. Nf3 {[%emt 0:05:43]} d6 {[%emt 0:10:38]} 9. Bg5 {[%emt 0:02:37]} Be6 {[%emt 0:13:19]} 10. a3 {[%emt 0:05:30]} Bxf2 {[%emt 0:10:49]} 11. Qb5 {[%emt 0:15:00]} h6 {[%emt 0:12:37]} 12. Bxf6 {[%emt 0:12:08]} Be3+ {[%emt 0:00:33]} 13. Nd2 {[%emt 0:04:13]} Qxf6 {[%emt 0:03:05]} 14. Qd3 {[%emt 0:12:39]} Bd4 {[%emt 0:04:05]} 15. Nb3 {[%emt 0:07:02]} Bxc3 {[%emt 0:01:59]} 16. bxc3 {[%emt 0:00:46]} Ne5 {[%emt 0:03:41]} 17. Qd4 {[%emt 0:02:07]} Ng4 {[%emt 0:04:13]} 18. Qxf6 {[%emt 0:02:14]} Nxf6 {[%emt 0:00:06]} 19. Nd2 {[%emt 0:01:15]} Bg4 {[%emt 0:01:49]} 20. Re1 {[%emt 0:01:26]} Re7 {[%emt 0:00:55]} 21. Bd3 {[%emt 0:01:11]} Rae8 {[%emt 0:00:17]} 22. Rhf1 {[%emt 0:01:46]} d5 {[%emt 0:02:11]} 23. Rf4 {[%emt 0:01:50]} Bh5 {[%emt 0:02:14]} 24. c4 {[%emt 0:01:17]} c6 {[%emt 0:03:10]} 25. cxd5 {[%emt 0:01:25]} cxd5 {[%emt 0:00:01]} 26. Bb5 {[%emt 0:01:14]} Rc8 {[%emt 0:01:08]} 27. e5 {[%emt 0:01:57]} a6 {[%emt 0:00:33]} 28. Ba4 {[%emt 0:04:01]} b5 {[%emt 0:00:40]} 29. Bb3 {[%emt 0:00:04]} Rce8 {[%emt 0:00:20]} 30. a4 {[%emt 0:03:53]} Rxe5 {[%emt 0:01:10]} 31. Rxe5 {[%emt 0:02:18]} Rxe5 {[%emt 0:00:02]} 32. axb5 {[%emt 0:00:40]} axb5 {[%emt 0:00:08]} 33. Nf3 {[%emt 0:01:56]} Re2 {[%emt 0:02:44]} 34. Nd4 {[%emt 0:01:27]} Rxg2 {[%emt 0:00:32]} 35. h4 {[%emt 0:01:20]} Be2 {[%emt 0:02:41]} 36. Rf5 {[%emt 0:01:28]} Bc4 {[%emt 0:00:40]} 37. Nc6 {[%emt 0:01:20]} Rg4 {[%emt 0:02:45]} 38. h5 {[%emt 0:01:26]} Rg5 {[%emt 0:01:25]} 39. Rxg5 {[%emt 0:00:59]} hxg5 {[%emt 0:00:06]} 40. Kd2 {[%emt 0:00:21]} Kh7 {[%emt 0:01:14]} 41. Ne5 {[%emt 0:30:39]} Ne4+ {[%emt 0:30:53]} 42. Ke3 {[%emt 0:00:00]} f5 {[%emt 0:00:00]} 43. Bxc4 {[%emt 0:00:00]} dxc4 {[%emt 0:00:00]} 44. Nf7 {[%emt 0:00:00]} b4 {[%emt 0:00:00]} 45. Kd4 {[%emt 0:00:00]} b3 {[%emt 0:00:00]} 46. cxb3 {[%emt 0:00:00]} cxb3 {[%emt 0:00:00]} 47. Kd3 {[%emt 0:00:00]} g4 {[%emt 0:00:00]} 48. Ne5 {[%emt 0:00:00]} Kh6 {[%emt 0:00:00]} 49. Nc4 g3 {[%emt 0:00:00]} 50. Ke3 {[%emt 0:00:00]} g2 51. Kd4 0-1

[Event "Czech Youth U16 Girls 2024"]
[Site "Kouty nad Desnou"]
[Date "2024.03.15"]
[Round "8.2"]
[White "Sikorova, Jana"]
[Black "Zadrapova, Amalie"]
[Result "0-1"]
[ECO "E61"]
[WhiteElo "1788"]
[BlackElo "1857"]
[Annotator "NA COMBH"]
[PlyCount "62"]
[EventDate "2024.03.10"]
[EventType "swiss"]
[EventCountry "CZE"]
[SourceTitle "playchess.com"]
[Source "ChessBase"]
[SourceQuality "1"]
[TimeControl "40/5400+30:1800+30"]

1. d4 {[%emt 0:00:08]} Nf6 {[%emt 0:00:05]} 2. c4 {[%emt 0:00:08]} g6 {[%emt 0:00:04]} 3. Nc3 {[%emt 0:00:10]} Bg7 {[%emt 0:00:06]} 4. Nf3 {[%emt 0:00:12]} O-O {[%emt 0:00:07]} 5. Bg5 {[%emt 0:00:22]} d6 {[%emt 0:00:11]} 6. e3 {[%emt 0:00:14]} Nbd7 {[%emt 0:00:14]} 7. Be2 {[%emt 0:00:14]} h6 {[%emt 0:00:11]} 8. Bh4 {[%emt 0:00:12]} e5 {[%emt 0:00:13]} 9. O-O {[%emt 0:01:08]} g5 {[%emt 0:00:14]} 10. Bg3 {[%emt 0:00:14]} exd4 {[%emt 0:00:11]} 11. Nxd4 {[%emt 0:03:03]} Nc5 {[%emt 0:00:58]} 12. Qc2 {[%emt 0:01:57]} a5 {[%emt 0:00:22]} 13. Rfd1 {[%emt 0:03:44]} Re8 {[%emt 0:01:13]} 14. Rac1 {[%emt 0:02:36]} Nfe4 {[%emt 0:05:43]} 15. Nxe4 {[%emt 0:03:01]} Nxe4 {[%emt 0:00:53]} 16. Bf3 {[%emt 0:04:27]} f5 {[%emt 0:04:54]} 17. c5 {[%emt 0:07:59]} Bxd4 {[%emt 0:15:10]} 18. exd4 {[%emt 0:03:44]} Nf6 {[%emt 0:06:40]} 19. cxd6 {[%emt 0:04:25]} cxd6 {[%emt 0:01:45]} 20. h3 {[%emt 0:02:17]} Re7 {[%emt 0:03:24]} 21. Re1 {[%emt 0:02:22]} Rg7 {[%emt 0:08:28]} 22. Qb3+ {[%emt 0:09:28]} Kh8 {[%emt 0:01:08]} 23. Rc3 {[%emt 0:10:29]} f4 {[%emt 0:00:58]} 24. Bh2 {[%emt 0:00:23]} Bf5 {[%emt 0:00:40]} 25. Bd5 {[%emt 0:02:09]} a4 {[%emt 0:02:02]} 26. Qc4 {[%emt 0:02:35]} b5 {[%emt 0:04:55]} 27. Qc6 {[%emt 0:01:56]} Rb8 {[%emt 0:02:14]} 28. Be6 {[%emt 0:14:41]} Re7 {[%emt 0:06:58]} 29. d5 {[%emt 0:01:30]} Be4 {[%emt 0:02:15]} 30. Rxe4 {[%emt 0:07:55]} Nxe4 {[%emt 0:00:30]} 31. Rc1 {[%emt 0:01:06]} Nc5 {[%emt 0:02:00]} 0-1

[Event "Czech Youth U16 Girls 2024"]
[Site "Kouty nad Desnou"]
[Date "2024.03.15"]
[Round "8.3"]
[White "Cinkova, Vicky"]
[Black "Lackova, Ludmila"]
[Result "0-1"]
[ECO "A20"]
[WhiteElo "1682"]
[BlackElo "1652"]
[Annotator "NA COMBH"]
[PlyCount "56"]
[EventDate "2024.03.10"]
[EventType "swiss"]
[EventCountry "CZE"]
[SourceTitle "playchess.com"]
[Source "ChessBase"]
[SourceQuality "1"]
[TimeControl "40/5400+30:1800+30"]

1. c4 {[%emt 0:00:08]} e5 {[%emt 0:00:05]} 2. g3 {[%emt 0:02:00]} Nf6 {[%emt 0:00:11]} 3. Bg2 {[%emt 0:00:24]} Nc6 {[%emt 0:00:28]} 4. Nc3 {[%emt 0:00:08]} g6 {[%emt 0:00:12]} 5. d3 {[%emt 0:01:33]} Bg7 {[%emt 0:00:14]} 6. Bd2 {[%emt 0:00:34]} O-O {[%emt 0:00:33]} 7. Nf3 {[%emt 0:00:23]} d6 {[%emt 0:00:24]} 8. O-O {[%emt 0:00:44]} h6 {[%emt 0:00:27]} 9. a3 {[%emt 0:01:25]} a5 {[%emt 0:00:19]} 10. h3 {[%emt 0:06:57]} Nh5 {[%emt 0:00:44]} 11. e3 {[%emt 0:08:28]} f5 {[%emt 0:01:03]} 12. Qc1 {[%emt 0:03:18]} g5 {[%emt 0:07:40]} 13. Ne2 {[%emt 0:06:57]} Ne7 {[%emt 0:09:37]} 14. Ne1 {[%emt 0:15:25]} Ng6 {[%emt 0:12:05]} 15. Bf3 {[%emt 0:05:12]} Nf6 {[%emt 0:01:12]} 16. Bg2 {[%emt 0:09:08]} Nh5 {[%emt 0:00:17]} 17. Kh2 {[%emt 0:05:38]} f4 {[%emt 0:04:26]} 18. exf4 {[%emt 0:04:19]} exf4 {[%emt 0:00:14]} 19. Bc3 {[%emt 0:03:27]} fxg3+ {[%emt 0:04:01]} 20. fxg3 {[%emt 0:03:04]} Rxf1 {[%emt 0:01:01]} 21. Bxf1 {[%emt 0:00:03]} Qf8 {[%emt 0:06:43]} 22. Bg2 {[%emt 0:00:03]} Qf2 {[%emt 0:04:32]} 23. Ng1 {[%emt 0:00:55]} Qxg3+ {[%emt 0:00:53]} 24. Kh1 {[%emt 0:00:39]} Qf4 {[%emt 0:18:36]} 25. Qxf4 {[%emt 0:02:15]} Nhxf4 {[%emt 0:00:19]} 26. Bxg7 {[%emt 0:03:00]} Kxg7 {[%emt 0:00:07]} 27. Bf1 {[%emt 0:03:18]} b6 {[%emt 0:01:07]} 28. d4 {[%emt 0:03:53]} Bf5 {[%emt 0:07:12]} 0-1

[Event "Czech Youth U16 Girls 2024"]
[Site "Kouty nad Desnou"]
[Date "2024.03.15"]
[Round "8.4"]
[White "Dominikova, Denisa"]
[Black "Brezikova, Beata"]
[Result "1/2-1/2"]
[ECO "C70"]
[WhiteElo "1716"]
[BlackElo "1804"]
[Annotator "NA COMBH"]
[PlyCount "65"]
[EventDate "2024.03.10"]
[EventType "swiss"]
[EventCountry "CZE"]
[SourceTitle "playchess.com"]
[Source "ChessBase"]
[SourceQuality "1"]
[TimeControl "40/5400+30:1800+30"]

1. e4 {[%emt 0:00:06]} e5 {[%emt 0:00:03]} 2. Nf3 {[%emt 0:00:07]} Nc6 {[%emt 0:00:03]} 3. Bb5 {[%emt 0:00:17]} a6 {[%emt 0:00:04]} 4. Ba4 {[%emt 0:00:11]} Nge7 {[%emt 0:00:06]} 5. d4 {[%emt 0:01:19]} exd4 {[%emt 0:00:22]} 6. Nxd4 {[%emt 0:00:20]} Nxd4 {[%emt 0:00:52]} 7. Qxd4 {[%emt 0:00:21]} Nc6 {[%emt 0:00:31]} 8. Qd3 {[%emt 0:14:14]} Be7 {[%emt 0:01:57]} 9. Nc3 {[%emt 0:02:03]} O-O {[%emt 0:02:56]} 10. Be3 {[%emt 0:05:04]} Ne5 {[%emt 0:03:37]} 11. Qe2 {[%emt 0:03:40]} b5 {[%emt 0:06:39]} 12. Bb3 {[%emt 0:00:46]} c5 {[%emt 0:04:38]} 13. Bd5 {[%emt 0:05:56]} Rb8 {[%emt 0:01:38]} 14. O-O {[%emt 0:03:33]} d6 {[%emt 0:03:41]} 15. Bf4 {[%emt 0:12:09]} Ng6 {[%emt 0:07:24]} 16. Bg3 {[%emt 0:01:25]} Bd7 {[%emt 0:07:18]} 17. Nd1 {[%emt 0:04:03]} Ne5 {[%emt 0:12:29]} 18. Ne3 {[%emt 0:02:44]} Qc8 {[%emt 0:03:44]} 19. f3 {[%emt 0:04:33]} Be6 {[%emt 0:05:54]} 20. Rfd1 {[%emt 0:06:18]} Re8 {[%emt 0:07:58]} 21. b3 {[%emt 0:04:10]} Bf8 {[%emt 0:04:51]} 22. c4 {[%emt 0:08:41]} bxc4 {[%emt 0:05:22]} 23. Bxe5 {[%emt 0:00:59]} dxe5 {[%emt 0:01:03]} 24. Nxc4 {[%emt 0:01:20]} Bd7 {[%emt 0:01:13]} 25. Rac1 {[%emt 0:04:44]} Bb5 {[%emt 0:02:02]} 26. Qc2 {[%emt 0:01:47]} Qc7 {[%emt 0:02:13]} 27. Ne3 {[%emt 0:02:00]} a5 {[%emt 0:01:41]} 28. Bc4 {[%emt 0:01:01]} Bc6 {[%emt 0:02:06]} 29. Nd5 {[%emt 0:01:42]} Qa7 {[%emt 0:01:46]} 30. Kh1 {[%emt 0:00:38]} a4 {[%emt 0:03:05]} 31. Qc3 {[%emt 0:01:21]} axb3 {[%emt 0:02:43]} 32. axb3 {[%emt 0:00:44]} Rbd8 {[%emt 0:03:08]} 33. Ra1 {[%emt 0:02:22]} 1/2-1/2

[Event "Czech Youth U16 Girls 2024"]
[Site "Kouty nad Desnou"]
[Date "2024.03.15"]
[Round "8.5"]
[White "Vacekova, Anita"]
[Black "Dorazilova, Kristyna"]
[Result "0-1"]
[ECO "B12"]
[WhiteElo "1783"]
[BlackElo "1722"]
[Annotator "NA COMBH"]
[PlyCount "42"]
[EventDate "2024.03.10"]
[EventType "swiss"]
[EventCountry "CZE"]
[SourceTitle "playchess.com"]
[Source "ChessBase"]
[SourceQuality "1"]
[TimeControl "40/5400+30:1800+30"]

1. e4 {[%emt 0:00:02]} c6 {[%emt 0:00:04]} 2. d4 {[%emt 0:00:21]} d5 {[%emt 0:00:07]} 3. e5 {[%emt 0:01:02]} Bf5 {[%emt 0:00:09]} 4. h4 {[%emt 0:00:27]} h5 {[%emt 0:01:19]} 5. Nf3 {[%emt 0:07:14]} e6 {[%emt 0:02:03]} 6. Bg5 {[%emt 0:04:08]} Qc7 {[%emt 0:06:11]} 7. Bd3 {[%emt 0:01:56]} Bxd3 {[%emt 0:01:17]} 8. Qxd3 {[%emt 0:02:18]} Nd7 {[%emt 0:03:09]} 9. Nbd2 {[%emt 0:08:05]} c5 {[%emt 0:05:00]} 10. c3 {[%emt 0:00:41]} c4 {[%emt 0:03:50]} 11. Qe2 {[%emt 0:04:18]} Be7 {[%emt 0:01:38]} 12. O-O {[%emt 0:03:35]} Bxg5 {[%emt 0:06:34]} 13. Nxg5 {[%emt 0:09:44]} Ne7 {[%emt 0:01:02]} 14. Rfb1 {[%emt 0:08:29]} Nf5 {[%emt 0:13:43]} 15. g3 {[%emt 0:03:26]} g6 {[%emt 0:02:19]} 16. Nf1 {[%emt 0:07:12]} b5 {[%emt 0:03:48]} 17. Ne3 {[%emt 0:07:18]} Ke7 {[%emt 0:13:14]} 18. a4 {[%emt 0:03:37]} a6 {[%emt 0:04:22]} 19. Nxd5+ {[%emt 0:12:54]} exd5 {[%emt 0:00:50]} 20. e6 {[%emt 0:00:32]} Nxg3 {[%emt 0:13:14]} 21. exd7+ {[%emt 0:02:05]} Nxe2+ {[%emt 0:00:12]} 0-1

[Event "Czech Youth U16 Girls 2024"]
[Site "Kouty nad Desnou"]
[Date "2024.03.15"]
[Round "8.6"]
[White "Kavanova, Anezka"]
[Black "Mikesova, Lenka"]
[Result "1-0"]
[ECO "C63"]
[WhiteElo "1661"]
[BlackElo "1665"]
[Annotator "NA COMBH"]
[PlyCount "85"]
[EventDate "2024.03.10"]
[EventType "swiss"]
[EventCountry "CZE"]
[SourceTitle "playchess.com"]
[Source "ChessBase"]
[SourceQuality "1"]
[TimeControl "40/5400+30:1800+30"]

1. e4 {[%emt 0:00:03]} e5 {[%emt 0:00:07]} 2. Nf3 {[%emt 0:00:04]} Nc6 {[%emt 0:00:09]} 3. Bb5 {[%emt 0:00:04]} f5 {[%emt 0:00:21]} 4. Nc3 {[%emt 0:00:06]} fxe4 {[%emt 0:00:22]} 5. Nxe4 {[%emt 0:00:05]} Nf6 {[%emt 0:00:16]} 6. Nxf6+ {[%emt 0:00:06]} Qxf6 {[%emt 0:00:41]} 7. Qe2 {[%emt 0:00:08]} Bc5 {[%emt 0:27:50]} 8. Bxc6 {[%emt 0:00:27]} dxc6 {[%emt 0:12:40]} 9. d4 {[%emt 0:06:03]} Be7 {[%emt 0:04:11]} 10. Nxe5 {[%emt 0:00:49]} O-O {[%emt 0:00:49]} 11. O-O {[%emt 0:01:16]} Bf5 {[%emt 0:04:29]} 12. f4 {[%emt 0:00:49]} Rad8 {[%emt 0:01:45]} 13. Be3 {[%emt 0:02:01]} Bd6 {[%emt 0:07:09]} 14. Rad1 {[%emt 0:05:32]} Kh8 {[%emt 0:04:05]} 15. b3 {[%emt 0:06:58]} Bxe5 {[%emt 0:02:17]} 16. dxe5 {[%emt 0:00:11]} Qg6 {[%emt 0:01:01]} 17. Rxd8 {[%emt 0:03:24]} Rxd8 {[%emt 0:00:10]} 18. Rd1 {[%emt 0:00:17]} Re8 {[%emt 0:07:29]} 19. Rd2 {[%emt 0:02:01]} h6 {[%emt 0:01:36]} 20. Bf2 {[%emt 0:05:14]} Be4 {[%emt 0:04:06]} 21. Bg3 {[%emt 0:00:29]} Qf5 {[%emt 0:02:24]} 22. c4 {[%emt 0:02:42]} c5 {[%emt 0:00:23]} 23. Qd1 {[%emt 0:02:21]} Bc6 {[%emt 0:04:15]} 24. h3 {[%emt 0:02:50]} Kh7 {[%emt 0:01:02]} 25. Re2 {[%emt 0:03:33]} Kh8 {[%emt 0:05:32]} 26. Qc2 {[%emt 0:01:38]} Qxc2 {[%emt 0:01:27]} 27. Rxc2 {[%emt 0:00:07]} Kg8 {[%emt 0:01:35]} 28. Rd2 {[%emt 0:00:15]} Kf7 {[%emt 0:00:21]} 29. Bf2 {[%emt 0:01:12]} b6 {[%emt 0:00:22]} 30. Bh4 {[%emt 0:02:36]} g5 {[%emt 0:02:38]} 31. fxg5 {[%emt 0:01:55]} hxg5 {[%emt 0:02:15]} 32. Bxg5 {[%emt 0:00:53]} Rxe5 {[%emt 0:00:47]} 33. Bd8 {[%emt 0:00:12]} b5 {[%emt 0:00:19]} 34. cxb5 {[%emt 0:00:24]} Bxb5 {[%emt 0:00:21]} 35. Bxc7 {[%emt 0:00:06]} Re1+ {[%emt 0:01:01]} 36. Kh2 {[%emt 0:00:27]} c4 {[%emt 0:00:10]} 37. Bg3 {[%emt 0:01:00]} Rb1 {[%emt 0:01:19]} 38. a4 {[%emt 0:01:38]} Ba6 {[%emt 0:00:54]} 39. Rd7+ {[%emt 0:00:12]} Ke8 {[%emt 0:00:20]} 40. Rxa7 {[%emt 0:01:04]} c3 {[%emt 0:00:14]} 41. Rxa6 {[%emt 0:30:28]} c2 {[%emt 0:30:10]} 42. Bf4 {[%emt 0:00:22]} c1=Q {[%emt 0:00:13]} 43. Bxc1 {[%emt 0:00:15]} 1-0